[Event "Djerba Festival Open-B 2025"]
[Site "Djerba"]
[Date "2025.02.21"]
[Round "5.23"]
[White "Falezan, Arnaud"]
[Black "Ben Youssef, Chedly"]
[Result "1-0"]
[Annotator "NA RC"]
[ECO "C53"]
[WhiteElo "1662"]
[BlackElo "1787"]
[PlyCount "46"]
[EventDate "2025.02.15"]
[EventType "swiss"]
[EventCountry "TUN"]
[SourceTitle "playchess.com"]
[Source "ChessBase"]
[SourceQuality "1"]
[TimeControl "5400+30"]

1. e4 {[%emt 0:00:04]} e5 {[%emt 0:00:23]} 2. Nf3 {[%emt 0:00:08]} Nc6 {[%emt 0:00:12]} 3. Bc4 {[%emt 0:00:09]} Bc5 {[%emt 0:00:25]} 4. c3 {[%emt 0:00:23]} d6 {[%emt 0:02:03]} 5. d4 {[%emt 0:00:34]} exd4 {[%emt 0:00:35]} 6. cxd4 {[%emt 0:00:16]} Bb4+ {[%emt 0:00:28]} 7. Nc3 {[%emt 0:00:42]} Nge7 {[%emt 0:00:29]} 8. d5 {[%emt 0:00:53]} Bxc3+ {[%emt 0:00:21]} 9. bxc3 {[%emt 0:00:14]} Ne5 {[%emt 0:01:07]} 10. Nxe5 {[%emt 0:08:25]} dxe5 {[%emt 0:00:18]} 11. Qb3 {[%emt 0:07:21]} O-O {[%emt 1:29:39]} 12. O-O {[%emt 0:10:40]} Kh8 {[%emt 0:00:00]} 13. Ba3 {[%emt 0:03:00]} a5 {[%emt 0:00:00]} 14. Rad1 {[%emt 0:06:09]} f5 {[%emt 0:00:00]} 15. d6 {[%emt 0:01:21]} cxd6 {[%emt 0:00:00]} 16. Bxd6 {[%emt 0:01:17]} Nc6 {[%emt 0:00:00]} 17. Bxf8 {[%emt 0:02:11]} Qxf8 {[%emt 0:00:00]} 18. exf5 {[%emt 0:08:01]} Qxf5 {[%emt 0:00:00]} 19. Qb6 {[%emt 0:02:52]} Qg5 {[%emt 0:00:00]} 20. f4 {[%emt 0:08:14]} exf4 {[%emt 0:00:00]} 21. Rxf4 {[%emt 0:01:43]} Bh3 {[%emt 0:00:00]} 22. Qf2 {[%emt 0:03:21]} Qe7 {[%emt 0:00:00]} 23. gxh3 {[%emt 0:01:30]} Nb8 {[%emt 0:00:00]} 1-0

[Event "Djerba Festival Open-B 2025"]
[Site "Djerba"]
[Date "2025.02.21"]
[Round "5.24"]
[White "Kempinski, Andre"]
[Black "Alsaiti, Mohamed Abdalgader"]
[Result "1-0"]
[Annotator "NA RC"]
[ECO "B09"]
[WhiteElo "1888"]
[BlackElo "1674"]
[PlyCount "91"]
[EventDate "2025.02.15"]
[EventType "swiss"]
[EventCountry "TUN"]
[SourceTitle "playchess.com"]
[Source "ChessBase"]
[SourceQuality "1"]
[TimeControl "5400+30"]

1. e4 {[%emt 1:31:00]} d6 {[%emt 1:31:00]} 2. d4 {[%emt 0:00:30]} Nf6 {[%emt 0:00:30]} 3. Nc3 {[%emt 0:00:30]} g6 {[%emt 0:00:30]} 4. f4 {[%emt 0:00:30]} Bg7 {[%emt 0:00:30]} 5. Nf3 {[%emt 0:00:30]} c5 {[%emt 0:00:30]} 6. dxc5 {[%emt 0:00:30]} Qa5 {[%emt 0:00:30]} 7. Bd3 {[%emt 0:00:30]} Qxc5 {[%emt 0:00:30]} 8. Qe2 {[%emt 0:00:30]} Bg4 {[%emt 0:00:30]} 9. Be3 {[%emt 0:00:30]} Qb4 {[%emt 0:00:30]} 10. O-O {[%emt 0:00:30]} Nc6 {[%emt 0:00:30]} 11. Nb5 {[%emt 0:00:30]} O-O {[%emt 0:00:30]} 12. c3 {[%emt 0:00:30]} Qa5 {[%emt 0:00:30]} 13. h3 {[%emt 0:00:30]} Bxf3 {[%emt 0:00:30]} 14. Qxf3 {[%emt 0:00:30]} a6 {[%emt 0:00:30]} 15. Na3 {[%emt 0:00:30]} Nd7 {[%emt 0:00:30]} 16. Nc4 {[%emt 0:00:30]} Qc7 {[%emt 0:00:30]} 17. Nd2 {[%emt 0:00:30]} Nc5 {[%emt 0:00:30]} 18. Bc2 {[%emt 0:00:30]} b5 {[%emt 0:00:30]} 19. Qf2 {[%emt 0:00:30]} Rfd8 {[%emt 0:00:30]} 20. Nf3 {[%emt 0:00:30]} Nd7 {[%emt 0:00:30]} 21. Rac1 {[%emt 0:00:30]} Rab8 {[%emt 0:00:30]} 22. a3 {[%emt 0:00:30]} Na5 {[%emt 0:00:30]} 23. Bd4 {[%emt 0:00:30]} e5 {[%emt 0:00:30]} 24. fxe5 {[%emt 0:00:30]} dxe5 {[%emt 0:00:30]} 25. Be3 {[%emt 0:00:30]} Nc4 {[%emt 0:00:30]} 26. Bg5 {[%emt 0:00:30]} Re8 {[%emt 0:00:30]} 27. Bb1 {[%emt 0:00:30]} Nc5 {[%emt 0:00:30]} 28. Rcd1 {[%emt 0:00:30]} h6 {[%emt 0:00:30]} 29. Bc1 {[%emt 0:00:30]} Nb3 {[%emt 0:00:30]} 30. Be3 {[%emt 0:00:30]} Bf8 {[%emt 0:00:30]} 31. Kh1 {[%emt 0:00:30]} Nxe3 {[%emt 0:00:30]} 32. Qxe3 {[%emt 0:00:30]} Rbd8 {[%emt 0:00:30]} 33. Ba2 {[%emt 0:00:30]} Na5 {[%emt 0:00:30]} 34. Nd2 {[%emt 0:00:30]} Re7 {[%emt 0:00:30]} 35. b4 {[%emt 0:00:30]} Nc4 {[%emt 0:00:30]} 36. Nxc4 {[%emt 0:00:30]} bxc4 {[%emt 0:00:30]} 37. Rxd8 {[%emt 0:00:30]} Qxd8 {[%emt 0:00:30]} 38. Bxc4 {[%emt 0:00:30]} Rc7 {[%emt 0:00:30]} 39. Bd5 {[%emt 0:00:30]} Qd7 {[%emt 0:00:30]} 40. Rxf7 {[%emt 0:00:30]} Qxf7 {[%emt 0:00:30]} 41. Qb6 {[%emt 0:00:30]} Qxd5 {[%emt 0:00:30]} 42. exd5 {[%emt 0:00:30]} Rxc3 {[%emt 0:00:30]} 43. Qxg6+ {[%emt 0:00:30]} Bg7 {[%emt 0:00:30]} 44. d6 {[%emt 0:00:30]} Rxa3 {[%emt 0:00:30]} 45. d7 {[%emt 0:00:30]} Ra1+ {[%emt 0:00:30]} 46. Kh2 {[%emt 0:00:30]} 1-0

[Event "Djerba Festival Open-B 2025"]
[Site "Djerba"]
[Date "2025.02.21"]
[Round "5.25"]
[White "Morales, Maxime"]
[Black "Dauvois, Theo"]
[Result "0-1"]
[Annotator "NA RC"]
[ECO "D04"]
[WhiteElo "1781"]
[BlackElo "1663"]
[PlyCount "118"]
[EventDate "2025.02.15"]
[EventType "swiss"]
[EventCountry "TUN"]
[SourceTitle "playchess.com"]
[Source "ChessBase"]
[SourceQuality "1"]
[TimeControl "5400+30"]

1. d4 {[%emt 0:00:04]} d5 {[%emt 0:00:04]} 2. Nf3 {[%emt 0:00:08]} Nf6 {[%emt 0:01:07]} 3. e3 {[%emt 1:31:48]} c5 {[%emt 0:01:30]} 4. Bb5+ {[%emt 0:00:00]} Nc6 {[%emt 0:00:42]} 5. O-O {[%emt 0:00:00]} e6 {[%emt 0:00:26]} 6. b3 {[%emt 0:00:00]} a6 {[%emt 0:04:01]} 7. Be2 {[%emt 0:00:00]} cxd4 {[%emt 0:02:41]} 8. exd4 {[%emt 0:00:00]} Bd6 {[%emt 0:01:07]} 9. Bb2 {[%emt 0:00:00]} O-O {[%emt 0:00:52]} 10. Nbd2 {[%emt 0:00:00]} Qc7 {[%emt 0:03:00]} 11. a3 {[%emt 0:00:00]} Ne4 {[%emt 0:04:25]} 12. c4 {[%emt 0:00:00]} Bf4 {[%emt 0:01:51]} 13. h3 {[%emt 0:00:00]} Nxd2 {[%emt 0:02:17]} 14. Nxd2 {[%emt 0:00:00]} Bg5 {[%emt 0:07:42]} 15. Nf3 {[%emt 0:00:00]} Bf6 {[%emt 0:00:26]} 16. Rc1 {[%emt 0:00:00]} Rd8 {[%emt 0:02:26]} 17. cxd5 {[%emt 0:00:00]} Rd7 {[%emt 1:04:23]} 18. d6 Rxd6 {[%emt 0:00:00]} 19. Bc4 {[%emt 0:00:00]} Rd8 {[%emt 0:00:00]} 20. Rc2 {[%emt 0:00:00]} b5 {[%emt 0:00:00]} 21. Be2 {[%emt 0:00:00]} Bb7 {[%emt 0:00:00]} 22. Qd3 {[%emt 0:00:00]} Qb6 {[%emt 0:00:00]} 23. Rd1 {[%emt 0:00:00]} Nxd4 {[%emt 0:00:00]} 24. Bxd4 {[%emt 0:00:00]} Bxd4 {[%emt 0:00:00]} 25. Nxd4 {[%emt 0:00:00]} e5 {[%emt 0:00:00]} 26. Qg3 {[%emt 0:00:00]} exd4 {[%emt 0:00:00]} 27. Rc7 {[%emt 0:00:00]} Rac8 {[%emt 0:00:00]} 28. Rxc8 {[%emt 0:00:00]} Rxc8 {[%emt 0:00:00]} 29. Bd3 {[%emt 0:00:00]} g6 {[%emt 0:00:00]} 30. h4 {[%emt 0:00:00]} Qc5 {[%emt 0:00:00]} 31. b4 {[%emt 0:00:00]} Qh5 {[%emt 0:00:00]} 32. f3 {[%emt 0:00:00]} Re8 {[%emt 0:00:00]} 33. Qc7 {[%emt 0:00:00]} Ba8 {[%emt 0:00:00]} 34. Qd7 {[%emt 0:00:00]} Qe5 {[%emt 0:00:00]} 35. Bf1 {[%emt 0:00:14]} Qe3+ {[%emt 0:00:00]} 36. Kh2 {[%emt 0:00:43]} Qe5+ {[%emt 0:00:00]} 37. Kg1 {[%emt 0:00:21]} Bd5 {[%emt 0:00:00]} 38. Qa7 {[%emt 0:01:58]} Qe3+ {[%emt 0:00:00]} 39. Kh2 {[%emt 0:00:40]} Bxf3 {[%emt 0:00:00]} 40. gxf3 {[%emt 0:03:30]} Qf2+ {[%emt 0:00:00]} 41. Bg2 {[%emt 0:00:43]} Qxh4+ {[%emt 0:00:00]} 42. Kg1 {[%emt 0:00:21]} Re1+ {[%emt 0:00:00]} 43. Rxe1 {[%emt 0:00:02]} Qxe1+ {[%emt 0:00:00]} 44. Kh2 {[%emt 0:00:19]} Qe5+ {[%emt 0:00:00]} 45. Kh3 {[%emt 0:00:44]} d3 {[%emt 0:00:00]} 46. Qxa6 {[%emt 0:02:57]} d2 {[%emt 0:00:00]} 47. Qc8+ {[%emt 0:00:18]} Kg7 {[%emt 0:00:00]} 48. Qd8 {[%emt 0:03:05]} Qf5+ {[%emt 0:05:06]} 49. Kg3 {[%emt 0:00:50]} Qe5+ {[%emt 0:00:38]} 50. Kh3 {[%emt 0:00:06]} Qf4 {[%emt 0:01:45]} 51. Bh1 {[%emt 0:02:42]} g5 {[%emt 0:01:31]} 52. Qd3 {[%emt 0:02:36]} Qh4+ {[%emt 0:01:03]} 53. Kg2 {[%emt 0:00:12]} Qe1 {[%emt 0:01:09]} 54. Qd4+ {[%emt 0:00:55]} f6 {[%emt 0:00:29]} 55. Qd7+ {[%emt 0:01:06]} Kh6 {[%emt 0:00:20]} 56. Qh3+ {[%emt 0:00:38]} Kg6 {[%emt 0:00:08]} 57. Qd7 {[%emt 0:01:05]} d1=Q {[%emt 0:07:51]} 58. Qxb5 {[%emt 0:00:15]} Qxh1+ {[%emt 0:00:00]} 59. Kf2 {[%emt 0:00:10]} Qde1# {[%emt 0:00:00]} 0-1

[Event "Djerba Festival Open-B 2025"]
[Site "Djerba"]
[Date "2025.02.21"]
[Round "5.26"]
[White "Chaudesaygues, Hugo"]
[Black "Badya, Vasily"]
[Result "0-1"]
[Annotator "NA RC"]
[ECO "B08"]
[WhiteElo "1624"]
[BlackElo "1765"]
[PlyCount "72"]
[EventDate "2025.02.15"]
[EventType "swiss"]
[EventCountry "TUN"]
[SourceTitle "playchess.com"]
[Source "ChessBase"]
[SourceQuality "1"]
[TimeControl "5400+30"]

1. e4 {[%emt 1:31:00]} d6 {[%emt 1:31:00]} 2. d4 {[%emt 0:00:30]} Nf6 {[%emt 0:00:30]} 3. Nc3 {[%emt 0:00:30]} g6 {[%emt 0:00:30]} 4. Nf3 {[%emt 0:00:30]} Bg7 {[%emt 0:00:30]} 5. Bc4 {[%emt 0:00:30]} O-O {[%emt 0:00:30]} 6. O-O {[%emt 0:00:30]} Nxe4 {[%emt 0:00:30]} 7. Bxf7+ {[%emt 0:00:30]} Rxf7 {[%emt 0:00:30]} 8. Nxe4 {[%emt 0:00:30]} Bg4 {[%emt 0:00:30]} 9. Neg5 {[%emt 0:00:30]} Rf8 {[%emt 0:00:30]} 10. h3 {[%emt 0:00:30]} Bxf3 {[%emt 0:00:30]} 11. Nxf3 {[%emt 0:00:30]} Nc6 {[%emt 0:00:30]} 12. c3 {[%emt 0:00:30]} Kh8 {[%emt 0:00:30]} 13. Ng5 {[%emt 0:00:30]} Qd7 {[%emt 0:00:30]} 14. Re1 {[%emt 0:00:30]} e5 {[%emt 0:00:30]} 15. d5 {[%emt 0:00:30]} Ne7 {[%emt 0:00:30]} 16. Ne6 {[%emt 0:00:30]} Rf7 {[%emt 0:00:30]} 17. Nxg7 {[%emt 0:00:30]} Kxg7 {[%emt 0:00:30]} 18. Qd2 {[%emt 0:00:30]} Raf8 {[%emt 0:00:30]} 19. Rf1 {[%emt 0:00:30]} Qb5 {[%emt 0:00:30]} 20. Qh6+ {[%emt 0:00:30]} Kg8 {[%emt 0:00:30]} 21. Qh4 {[%emt 0:00:30]} Qxd5 {[%emt 0:00:30]} 22. Bg5 {[%emt 0:00:30]} Nf5 {[%emt 0:00:30]} 23. Qg4 {[%emt 0:00:30]} h6 {[%emt 0:00:30]} 24. Be3 {[%emt 0:00:30]} Nxe3 {[%emt 0:00:30]} 25. fxe3 {[%emt 0:00:30]} Rxf1+ {[%emt 0:00:30]} 26. Rxf1 {[%emt 0:00:30]} Rxf1+ {[%emt 0:00:30]} 27. Kxf1 {[%emt 0:00:30]} Qd3+ {[%emt 0:00:30]} 28. Kg1 {[%emt 0:00:30]} Qxe3+ {[%emt 0:00:30]} 29. Kh1 {[%emt 0:00:30]} Qc1+ {[%emt 0:00:30]} 30. Kh2 {[%emt 0:00:30]} Qf4+ {[%emt 0:00:30]} 31. Qg3 {[%emt 0:00:30]} g5 {[%emt 0:00:30]} 32. h4 {[%emt 0:00:30]} Kf7 {[%emt 0:00:30]} 33. Kh3 {[%emt 0:00:30]} Qxh4+ {[%emt 0:00:30]} 34. Qxh4 {[%emt 0:00:30]} gxh4 {[%emt 0:00:30]} 35. c4 {[%emt 0:00:30]} Kf6 {[%emt 0:00:30]} 36. Kg4 {[%emt 0:00:30]} c6 {[%emt 0:00:30]} 0-1

[Event "Djerba Festival Open-B 2025"]
[Site "Djerba"]
[Date "2025.02.21"]
[Round "5.27"]
[White "Nahom, Perez"]
[Black "Bensaid, Brahim"]
[Result "1-0"]
[Annotator "NA RC"]
[ECO "E73"]
[WhiteElo "1641"]
[BlackElo "1743"]
[PlyCount "79"]
[EventDate "2025.02.15"]
[EventType "swiss"]
[EventCountry "TUN"]
[SourceTitle "playchess.com"]
[Source "ChessBase"]
[SourceQuality "1"]
[TimeControl "5400+30"]

1. d4 {[%emt 0:00:17]} g6 {[%emt 0:12:34]} 2. Nf3 {[%emt 0:00:11]} Bg7 {[%emt 0:00:02]} 3. c4 {[%emt 0:00:15]} d6 {[%emt 0:00:11]} 4. e4 {[%emt 0:00:17]} Nf6 {[%emt 0:00:09]} 5. Nc3 {[%emt 0:00:08]} O-O {[%emt 0:00:02]} 6. Bg5 {[%emt 0:01:12]} Nc6 {[%emt 0:00:19]} 7. Be2 {[%emt 0:01:14]} e5 {[%emt 0:04:47]} 8. dxe5 {[%emt 0:01:38]} dxe5 {[%emt 0:01:32]} 9. Qxd8 {[%emt 1:29:48]} Nxd8 {[%emt 1:15:24]} 10. Bxf6 {[%emt 0:00:00]} Bxf6 {[%emt 0:00:00]} 11. Nd5 {[%emt 0:00:00]} Bg7 {[%emt 0:00:00]} 12. Nxc7 {[%emt 0:00:00]} Rb8 {[%emt 0:00:00]} 13. Nd5 {[%emt 0:00:00]} Nc6 {[%emt 0:00:00]} 14. O-O {[%emt 0:00:00]} h6 {[%emt 0:00:00]} 15. Bd3 {[%emt 0:00:00]} Bg4 {[%emt 0:00:00]} 16. b4 {[%emt 0:00:00]} f5 {[%emt 0:00:00]} 17. Nd2 {[%emt 0:00:00]} Nd4 {[%emt 0:00:00]} 18. f3 {[%emt 0:00:00]} Bh5 {[%emt 0:00:00]} 19. h3 {[%emt 0:00:00]} f4 {[%emt 0:00:00]} 20. Nb3 {[%emt 0:00:00]} g5 {[%emt 0:00:00]} 21. Nc5 {[%emt 0:00:00]} Rfd8 {[%emt 0:00:00]} 22. Rac1 {[%emt 0:00:00]} Bf7 {[%emt 0:00:00]} 23. Rfe1 {[%emt 0:00:00]} h5 {[%emt 0:00:00]} 24. Nb3 {[%emt 0:00:00]} Nxb3 {[%emt 0:00:00]} 25. axb3 {[%emt 0:00:00]} Bxd5 {[%emt 0:00:00]} 26. exd5 {[%emt 0:00:00]} Kf8 {[%emt 0:00:00]} 27. Be4 {[%emt 0:00:00]} Ke7 {[%emt 0:00:00]} 28. c5 {[%emt 0:00:00]} Kf6 {[%emt 0:00:00]} 29. b5 {[%emt 0:00:00]} Bf8 {[%emt 0:00:00]} 30. d6 {[%emt 0:00:00]} b6 {[%emt 0:00:00]} 31. b4 {[%emt 0:00:00]} bxc5 {[%emt 0:00:00]} 32. bxc5 {[%emt 0:00:00]} Rxb5 {[%emt 0:00:00]} 33. Red1 {[%emt 0:00:00]} a5 {[%emt 0:00:00]} 34. c6 {[%emt 0:00:00]} Bxd6 {[%emt 0:00:00]} 35. Rxd6+ {[%emt 0:00:00]} Rxd6 {[%emt 0:00:00]} 36. c7 {[%emt 0:00:00]} Rd1+ {[%emt 0:00:00]} 37. Rxd1 {[%emt 0:00:00]} Rc5 {[%emt 0:00:00]} 38. Rd7 {[%emt 0:00:00]} a4 {[%emt 0:00:00]} 39. Rd6+ {[%emt 0:00:00]} Ke7 {[%emt 0:00:00]} 40. Rc6 {[%emt 0:00:00]} 1-0

[Event "Djerba Festival Open-B 2025"]
[Site "Djerba"]
[Date "2025.02.21"]
[Round "5.28"]
[White "Ferahi, Tarik"]
[Black "Boudnani, Brahim"]
[Result "0-1"]
[Annotator "NA RC"]
[ECO "C41"]
[WhiteElo "1612"]
[BlackElo "1721"]
[PlyCount "62"]
[EventDate "2025.02.15"]
[EventType "swiss"]
[EventCountry "TUN"]
[SourceTitle "playchess.com"]
[Source "ChessBase"]
[SourceQuality "1"]
[TimeControl "5400+30"]

1. e4 {[%emt 0:00:02]} d6 {[%emt 0:00:09]} 2. d4 {[%emt 0:00:05]} Nf6 {[%emt 0:00:16]} 3. Nc3 {[%emt 0:00:14]} Nbd7 {[%emt 0:00:09]} 4. Nf3 {[%emt 0:00:14]} e5 {[%emt 0:00:49]} 5. Bc4 {[%emt 0:00:30]} h6 {[%emt 0:00:18]} 6. Be3 {[%emt 0:02:56]} c6 {[%emt 0:00:19]} 7. a4 {[%emt 0:03:17]} Qc7 {[%emt 0:00:45]} 8. O-O {[%emt 0:02:54]} Be7 {[%emt 0:00:20]} 9. d5 {[%emt 0:06:47]} Nf8 {[%emt 0:00:29]} 10. Qd2 {[%emt 0:02:38]} g5 {[%emt 0:00:50]} 11. Rfd1 {[%emt 0:01:53]} Bg4 {[%emt 0:01:02]} 12. Be2 {[%emt 0:03:01]} Ng6 {[%emt 0:00:37]} 13. b4 {[%emt 0:03:34]} Nf4 {[%emt 0:01:55]} 14. Bxf4 {[%emt 0:03:30]} gxf4 {[%emt 0:00:11]} 15. Nxe5 {[%emt 0:28:26]} Bxe2 {[%emt 0:00:15]} 16. Nxe2 {[%emt 0:00:06]} Nxe4 {[%emt 0:02:25]} 17. Qxf4 {[%emt 0:00:20]} Nf6 {[%emt 0:07:54]} 18. Nf3 {[%emt 0:05:59]} Nxd5 {[%emt 0:00:35]} 19. Qe4 {[%emt 0:02:09]} Nf6 {[%emt 0:04:51]} 20. Qe3 {[%emt 0:01:59]} d5 {[%emt 0:02:43]} 21. c3 {[%emt 0:02:00]} Ne4 {[%emt 0:01:36]} 22. Nd2 {[%emt 0:02:31]} f5 {[%emt 0:07:01]} 23. f3 {[%emt 0:02:34]} Nxd2 {[%emt 0:02:06]} 24. Rxd2 {[%emt 0:00:30]} Rg8 {[%emt 0:00:36]} 25. Re1 {[%emt 0:02:56]} O-O-O {[%emt 0:02:57]} 26. Qxa7 {[%emt 0:01:02]} Bd6 {[%emt 0:00:33]} 27. f4 {[%emt 0:01:32]} Bxf4 {[%emt 0:01:40]} 28. Nxf4 {[%emt 0:00:12]} Qxf4 {[%emt 0:03:09]} 29. Rde2 {[%emt 0:02:26]} h5 {[%emt 0:07:30]} 30. Re5 {[%emt 0:01:33]} Rxg2+ {[%emt 0:00:57]} 31. Kxg2 {[%emt 0:01:57]} Rg8+ {[%emt 0:51:03]} 0-1

[Event "Djerba Festival Open-B 2025"]
[Site "Djerba"]
[Date "2025.02.21"]
[Round "6.1"]
[White "Rafik yassine"]
[Black "Zenaidi, Sadok"]
[Result "0-1"]
[Annotator "NA RC"]
[ECO "D41"]
[WhiteElo "1909"]
[BlackElo "1872"]
[PlyCount "62"]
[EventDate "2025.02.15"]
[EventType "swiss"]
[EventCountry "TUN"]
[SourceTitle "playchess.com"]
[Source "ChessBase"]
[SourceQuality "1"]
[TimeControl "5400+30"]

1. c4 {[%emt 0:00:07]} Nf6 {[%emt 0:03:35]} 2. Nc3 {[%emt 0:00:25]} c5 {[%emt 0:01:52]} 3. g3 {[%emt 0:00:09]} e6 {[%emt 0:02:03]} 4. Bg2 {[%emt 0:01:04]} Nc6 {[%emt 0:00:29]} 5. Nf3 {[%emt 0:00:35]} Be7 {[%emt 0:02:33]} 6. O-O {[%emt 0:02:04]} O-O {[%emt 0:01:30]} 7. d4 {[%emt 0:01:05]} d5 {[%emt 0:01:49]} 8. cxd5 {[%emt 0:01:26]} Nxd5 {[%emt 0:00:05]} 9. Nxd5 {[%emt 0:03:38]} Qxd5 {[%emt 0:00:37]} 10. Ne5 {[%emt 0:00:36]} Qxd4 {[%emt 0:00:12]} 11. Nxc6 {[%emt 0:00:09]} bxc6 {[%emt 0:00:10]} 12. Bxc6 {[%emt 0:04:00]} Rb8 {[%emt 0:00:10]} 13. Qc2 {[%emt 0:02:08]} Rd8 {[%emt 0:06:39]} 14. Rb1 {[%emt 0:00:25]} Bf6 {[%emt 0:01:14]} 15. b3 {[%emt 0:02:04]} Qc3 {[%emt 0:04:40]} 16. Qe4 {[%emt 0:11:56]} Rb4 {[%emt 0:12:20]} 17. Qf3 {[%emt 0:01:19]} Qc2 {[%emt 0:08:10]} 18. Ba3 {[%emt 0:03:34]} Rb8 {[%emt 0:03:12]} 19. Rfc1 {[%emt 0:06:40]} Qxa2 {[%emt 0:00:22]} 20. Bxc5 {[%emt 0:00:31]} Ba6 {[%emt 0:00:27]} 21. Bxa7 {[%emt 0:04:35]} Bxe2 {[%emt 0:04:23]} 22. Qe3 {[%emt 0:00:54]} Rd3 {[%emt 0:04:35]} 23. Bxb8 {[%emt 0:10:36]} Rxe3 {[%emt 0:00:19]} 24. fxe3 {[%emt 0:00:12]} g5 {[%emt 0:03:53]} 25. Be4 {[%emt 0:03:08]} Kg7 {[%emt 0:05:59]} 26. b4 {[%emt 0:01:45]} g4 {[%emt 0:01:48]} 27. Bg2 {[%emt 0:06:04]} Bd3 {[%emt 0:00:25]} 28. Bc6 {[%emt 0:06:32]} Bxb1 {[%emt 0:00:27]} 29. b5 {[%emt 0:00:07]} Bd3 {[%emt 0:01:53]} 30. Bc7 {[%emt 0:01:26]} Qb2 {[%emt 0:00:19]} 31. Rc5 {[%emt 0:02:28]} Qb1+ {[%emt 0:00:16]} 0-1

[Event "Djerba Festival Open-B 2025"]
[Site "Djerba"]
[Date "2025.02.21"]
[Round "6.2"]
[White "Azreug, Lazhar"]
[Black "Cherad, Mohammed"]
[Result "1-0"]
[Annotator "NA RC"]
[ECO "C42"]
[WhiteElo "1793"]
[BlackElo "1768"]
[PlyCount "138"]
[EventDate "2025.02.15"]
[EventType "swiss"]
[EventCountry "TUN"]
[SourceTitle "playchess.com"]
[Source "ChessBase"]
[SourceQuality "1"]
[TimeControl "5400+30"]

1. e4 {[%emt 0:03:14]} e5 {[%emt 0:00:12]} 2. Nf3 {[%emt 0:00:06]} Nf6 {[%emt 0:00:11]} 3. Nxe5 {[%emt 0:00:05]} Nxe4 {[%emt 0:00:10]} 4. Qe2 {[%emt 0:00:04]} Qe7 {[%emt 0:00:13]} 5. Qxe4 {[%emt 0:00:15]} d6 {[%emt 0:00:11]} 6. d4 {[%emt 0:00:06]} dxe5 {[%emt 0:00:14]} 7. dxe5 {[%emt 0:00:03]} Nc6 {[%emt 0:00:15]} 8. Nc3 {[%emt 0:00:02]} Qxe5 {[%emt 0:00:47]} 9. Qxe5+ {[%emt 0:00:02]} Nxe5 {[%emt 0:00:13]} 10. Bf4 {[%emt 0:00:01]} Bd6 {[%emt 0:00:24]} 11. Bg3 {[%emt 1:32:02]} Bf5 {[%emt 0:05:59]} 12. O-O-O {[%emt 0:00:00]} O-O {[%emt 0:03:13]} 13. Nb5 {[%emt 0:00:00]} Rfd8 {[%emt 0:34:00]} 14. Be2 {[%emt 0:00:00]} Be4 {[%emt 0:02:10]} 15. f3 {[%emt 0:00:00]} Bc6 {[%emt 0:00:10]} 16. Nxd6 {[%emt 0:00:00]} cxd6 {[%emt 0:00:13]} 17. Rd4 {[%emt 0:00:00]} Kf8 {[%emt 0:03:20]} 18. h4 {[%emt 0:00:00]} f6 {[%emt 0:47:35]} 19. Rhd1 {[%emt 0:00:00]} Ke7 {[%emt 0:00:00]} 20. Be1 {[%emt 0:00:00]} b5 {[%emt 0:00:00]} 21. Bb4 {[%emt 0:00:00]} Nf7 {[%emt 0:00:00]} 22. Re1 {[%emt 0:00:00]} Kd7 {[%emt 0:00:00]} 23. Red1 {[%emt 0:00:00]} Ke7 {[%emt 0:00:00]} 24. Ba5 {[%emt 0:00:00]} Rd7 {[%emt 0:00:00]} 25. f4 {[%emt 0:00:00]} f5 {[%emt 0:00:00]} 26. b3 {[%emt 0:00:00]} a6 {[%emt 0:00:00]} 27. g4 {[%emt 0:00:00]} Be4 {[%emt 0:00:00]} 28. Kb2 {[%emt 0:00:00]} Rc8 {[%emt 0:00:00]} 29. c3 {[%emt 0:00:00]} g6 {[%emt 0:00:00]} 30. Bb4 {[%emt 0:00:00]} Ke6 {[%emt 0:00:00]} 31. a4 {[%emt 0:00:00]} Rb8 {[%emt 0:00:00]} 32. axb5 {[%emt 0:00:00]} axb5 {[%emt 0:00:00]} 33. Ra1 {[%emt 0:00:00]} d5 {[%emt 0:00:00]} 34. Ra6+ {[%emt 0:00:00]} Nd6 {[%emt 0:00:00]} 35. Rd1 {[%emt 0:00:00]} h6 {[%emt 0:00:00]} 36. gxf5+ {[%emt 0:00:00]} Bxf5 {[%emt 0:00:00]} 37. Bf3 {[%emt 0:00:00]} Be4 {[%emt 0:00:00]} 38. Bxe4 {[%emt 0:00:00]} dxe4 {[%emt 0:00:00]} 39. Raxd6+ {[%emt 0:00:21]} Rxd6 {[%emt 0:00:00]} 40. Rxd6+ {[%emt 0:00:03]} Kf5 {[%emt 0:00:00]} 41. Ra6 {[%emt 0:04:55]} Rd8 {[%emt 0:00:00]} 42. c4 {[%emt 0:00:43]} bxc4 {[%emt 0:00:00]} 43. bxc4 {[%emt 0:00:02]} e3 {[%emt 0:00:00]} 44. Kc2 {[%emt 0:02:34]} Rd4 {[%emt 0:00:00]} 45. Kb3 {[%emt 0:02:03]} Rxf4 {[%emt 0:00:00]} 46. Be1 {[%emt 0:04:22]} Rf1 {[%emt 0:00:00]} 47. Ra1 {[%emt 0:00:46]} g5 {[%emt 0:00:00]} 48. hxg5 {[%emt 0:00:33]} hxg5 {[%emt 0:00:00]} 49. Kc3 {[%emt 0:01:24]} Ke4 {[%emt 0:00:00]} 50. c5 {[%emt 0:00:26]} Rf5 {[%emt 0:00:00]} 51. Ra4+ {[%emt 0:00:56]} Kf3 {[%emt 0:00:00]} 52. Rc4 {[%emt 0:00:49]} Ke2 {[%emt 0:00:15]} 53. Bg3 {[%emt 0:00:30]} Kf3 {[%emt 0:01:44]} 54. Be1 {[%emt 0:00:03]} Ke2 {[%emt 0:00:29]} 55. c6 {[%emt 0:00:50]} Rf8 {[%emt 0:00:12]} 56. c7 {[%emt 0:00:36]} Rc8 {[%emt 0:02:13]} 57. Bg3 {[%emt 0:00:11]} Kf3 {[%emt 0:00:04]} 58. Be5 {[%emt 0:00:48]} g4 {[%emt 0:01:52]} 59. Kd3 {[%emt 0:00:32]} g3 {[%emt 0:02:43]} 60. Rf4+ {[%emt 0:00:20]} Kg2 {[%emt 0:00:04]} 61. Rg4 {[%emt 0:00:14]} Kf2 {[%emt 0:00:47]} 62. Bxg3+ {[%emt 0:00:46]} Kf3 {[%emt 0:00:17]} 63. Rg7 {[%emt 0:00:10]} e2 {[%emt 0:00:15]} 64. Be1 {[%emt 0:00:58]} Re8 {[%emt 0:01:01]} 65. Rf7+ {[%emt 0:00:16]} Kg4 {[%emt 0:00:24]} 66. Rd7 {[%emt 0:00:12]} Rc8 {[%emt 0:00:01]} 67. Kxe2 {[%emt 0:00:18]} Kf5 {[%emt 0:00:29]} 68. Ba5 {[%emt 0:00:03]} Ke6 {[%emt 0:00:36]} 69. Rd8 {[%emt 0:00:01]} Rxd8 {[%emt 0:01:35]} 1-0